Cogmind - Beta 12 @@@ ROGUE MODE // 2023.03.10 @ 20:06:23 Player: Fleshy Vegetable Bird Result: Destroyed by G-50 Soldier with Heavy Laser Performance ------------- Evolutions (4) 2000 Regions Visited (14) 2800 Robots Destroyed (74) 370 Value Destroyed (1624) 1624 Prototype IDs (22) 440 Alien Tech Used (0) 0 Bonus (1323) 1323 TOTAL SCORE: 8557 Bonus ------- High Alert Combat Kills 11 Follower Combat Kills 657 Entered DSFs 500 Met Data Miner 300 Friendly Fire -145 Cogmind --------- Core Integrity 0/850 Matter 300/300 Energy 99/100 System Corruption 0% Temperature Cool (9) Movement Core (50) Location -5/Proximity Caves Parts ------- > --- POWER (2) -------- (None) > --- PROPULSION (4) --- (None) > --- UTILITY (7) ------ Enhanced Optical Array Advanced Terrain Scan Processor Advanced Targeting Computer Advanced Melee Analysis Suite Hacking Suite Authchip [Propulsion] > --- WEAPON (2) ------- (None) > --- INVENTORY (5) ---- Light Angular Momentum Engine Advanced Energy Well Cloaking Device Improved Core Shielding Coil Gun Peak State ------------ > --- POWER ------------ Backup Power III Light Nuclear Core > --- PROPULSION ------- Armored Huge Wheel Armored Huge Wheel > --- UTILITY ---------- Huge Storage Unit Experimental Sensor Array Improved Signal Interpreter Advanced Targeting Computer Advanced Melee Analysis Suite Armor Integrity Analyzer Improved Medium Armor Plating > --- WEAPON ----------- Enhanced Autogun Hypervelocity Mass Driver > --- INVENTORY -------- Light Nuclear Core Wheel Aerolev Unit Aerolev Unit Aerolev Unit Aerolev Unit Medium Storage Unit Weight Redist. System Improved Terrain Scanner Advanced Terrain Scan Processor Advanced Melee Analysis Suite Cloaking Device Improved Core Shielding Improved Propulsion Shielding Improved Utility Shielding Hardened Light Armor Plating Insulated Plating Insulated Plating Authchip [R/Combat] Authchip [Propulsion] Authchip [Propulsion] Enhanced Autogun Rocket Launcher Missile Launcher Axe [Rating: 70] Favorites ----------- Power Ion Engine Engine Ion Engine Power Core Light Nuclear Core Propulsion Wheel Wheel Wheel Hover Unit Aerolev Unit Utility Advanced Targeting Computer Device Experimental Sensor Array Storage Huge Storage Unit Processor Advanced Targeting Computer Hackware Hacking Suite Protection Improved Medium Armor Plating Weapon Enhanced Autogun Energy Gun Small Laser Energy Cannon Plasma Cannon Ballistic Gun Enhanced Autogun Ballistic Cannon Hypervelocity Mass Driver Launcher Grenade Launcher Slashing Weapon Axe Build | -11 -10 -10 -10 -9 -8 -7 -7 -7 -7 -6 -6 -6 -6 -5 ------- Run | Jun Mat Min Exi Min Mat Fac Was Fac DSF Fac Low Low Dat Pro Slots Evolved 8 | . . . . . 4 2 . . . 2 . . . . Power 1 | . . . . . . . . . . 1 . . . . Propulsion 2 | . . . . . 1 1 . . . . . . . . Utility 5 | . . . . . 3 1 . . . 1 . . . . Weapon . | . . . . . . . . . . . . . . . Parts Attached 85 | 7 8 6 1 3 15 5 2 1 3 14 3 15 . 2 Power 7 | 1 . 1 . . 1 1 1 . . 1 1 . . . Engine 3 | 1 . 1 . . 1 . . . . . . . . . Core 4 | . . . . . . 1 1 . . 1 1 . . . Reactor . | . . . . . . . . . . . . . . . Propulsion 24 | 2 2 3 . 1 6 1 . . . 1 . 8 . . Treads . | . . . . . . . . . . . . . . . Leg . | . . . . . . . . . . . . . . . Wheel 15 | 2 2 3 . 1 5 1 . . . 1 . . . . Hover 9 | . . . . . 1 . . . . . . 8 . . Flight . | . . . . . . . . . . . . . . . Utility 37 | 2 2 . 1 1 6 2 1 1 2 11 1 7 . . Device 9 | . . . . . 1 1 . . . 5 1 1 . . Storage 7 | 2 2 . 1 1 1 . . . . . . . . . Processor 10 | . . . . . 2 1 . . 2 1 . 4 . . Hackware 3 | . . . . . . . . . . 1 . 2 . . Protection 8 | . . . . . 2 . 1 1 . 4 . . . . Artifact . | . . . . . . . . . . . . . . . Weapon 17 | 2 4 2 . 1 2 1 . . 1 1 1 . . 2 Energy Gun 1 | . 1 . . . . . . . . . . . . . Energy Cannon 1 | . . . . . . . . . . . . . . 1 Ballistic Gun 9 | 2 3 1 . . 2 . . . . . . . . 1 Ballistic Cannon 1 | . . . . . . . . . 1 . . . . . Launcher 3 | . . 1 . 1 . . . . . . 1 . . . Special Weapon . | . . . . . . . . . . . . . . . Impact Weapon . | . . . . . . . . . . . . . . . Slashing Weapon 2 | . . . . . . 1 . . . 1 . . . . Piercing Weapon . | . . . . . . . . . . . . . . . Special Melee Weapon . | . . . . . . . . . . . . . . . Unidentified Prototypes 4 | . . . . . 3 . . . . . . 1 . . Parts Lost 22 | . 3 . . . 3 . 1 . . . 1 13 . 1 Power 3 | . . . . . 1 . . . . . . 2 . . Propulsion 10 | . 1 . . . 2 . . . . . . 7 . . Utility 5 | . . . . . . . 1 . . . 1 2 . 1 Weapon 4 | . 2 . . . . . . . . . . 2 . . Highest Loss Streak 11 | . 2 . . . 1 . 1 . . . 1 11 . 1 To Critical Strikes . | . . . . . . . . . . . . . . . Average Slot Usage (%) 89 | . 98 100 100 100 93 83 81 76 81 84 82 63 46 48 Engine 7 | . 14 14 14 14 8 6 . . . 4 . . . . Core 3 | . . . . . . . 6 7 7 7 13 7 . . Wheel 19 | . 27 28 28 28 24 15 15 15 15 13 13 5 . . Device 2 | . . . . . . 6 7 7 . 5 5 4 . . Storage 15 | . 28 28 28 28 18 7 7 7 7 6 6 2 . . Processor 16 | . . . . . 16 23 23 15 27 27 33 27 33 32 Protection 3 | . . . . . 6 7 5 7 7 5 . . . . Ballistic Gun 11 | . 23 16 14 14 17 15 7 7 7 1 . . . 2 Ballistic Cannon 1 | . . . . . . . . . 6 4 . . . . Launcher 2 | . . 8 14 14 . . . . . . 3 . . . Slashing Weapon 1 | . . . . . . . 7 7 . 5 6 2 . . Naked Turns . | . . . . . . . . . . . . . . . Heaviest Build 114 | 19 94 26 31 31 102 101 100 99 107 114 103 103 . 3 Greatest Support 56 | 20 20 20 20 20 36 56 56 56 56 56 56 56 3 3 Greatest Overweight (x) 4 | 1 4 1 1 1 3 1 1 1 1 2 1 3 . . Average Overweight (x) 1 | . 1 1 1 1 2 1 1 1 1 1 1 . . . Largest Inventory Capacity 25 | 8 25 10 10 10 25 25 25 25 25 25 25 25 5 5 Average Capacity 19 | 6 13 10 10 10 22 25 25 25 25 25 25 14 5 5 Most Carried 25 | 5 17 10 10 10 25 22 21 20 25 25 25 23 5 5 Average Carried 15 | 2 7 9 9 9 14 21 19 19 23 24 23 12 5 4 Final Capacity 25 | 8 10 10 10 10 25 25 25 25 25 25 25 5 5 5 Final Carried 25 | 4 10 10 10 10 24 20 20 20 25 25 23 5 5 5 Class Distribution -------------------- 68% | Mutant 21% | Scavenger-Mutant 5% | Skirmisher 3% | Assassin Dominant Class ---------------- Mutant | -10/Materials Mutant | -10/Mines Mutant | -10/Exiles Mutant | -9/Mines Scavenger-Mutant | -8/Materials Skirmisher | -7/Factory Assassin | -7/Waste Mutant | -7/Factory Mutant | -7/DSF Mutant | -6/Factory Mutant | -6/Lower Caves Mutant | -6/Lower Caves Mutant | -6/Data Miner Mutant | -5/Proximity Caves Resources | -11 -10 -10 -10 -9 -8 -7 -7 -7 -7 -6 -6 -6 -6 -5 ----------- Run | Jun Mat Min Exi Min Mat Fac Was Fac DSF Fac Low Low Dat Pro Matter Collected 1980 | 282 232 130 . 120 624 . 101 . 56 186 87 119 . 43 Remotely . | . . . . . . . . . . . . . . . Salvage Created 2153 | 89 293 37 . 153 893 31 . . 38 457 14 148 . . Parts 148 | 6 25 . . 25 58 2 . . . 22 3 7 . . Haulers Intercepted 7 | . 2 . . . 5 . . . . . . . . . Recyclers Shooed . | . . . . . . . . . . . . . . . Parts Field Recycled . | . . . . . . . . . . . . . . . Retrieved Matter . | . . . . . . . . . . . . . . . Parts Self-Destructed 13 | . . . . . . . . . . . 1 10 . 2 Prevented . | . . . . . . . . . . . . . . . Kills | -11 -10 -10 -10 -9 -8 -7 -7 -7 -7 -6 -6 -6 -6 -5 ------- Run | Jun Mat Min Exi Min Mat Fac Was Fac DSF Fac Low Low Dat Pro Combat Hostiles Destroyed 53 | . 9 3 . 10 14 1 . . . 7 3 6 . . Melee 5 | . . . . . . . . . . 3 . 2 . . Guns 25 | . 7 3 . 3 11 1 . . . . . . . . Cannons 4 | . . . . . . . . . . 4 . . . . AOE 19 | . 2 . . 7 3 . . . . . 3 4 . . Classes Destroyed 12 | 2 4 1 . 1 2 1 . . . 1 . . . . Worker 6 | . . . . 1 3 . . . . 2 . . . . Tunneler 2 | 1 . . . . 1 . . . . . . . . . Hauler 7 | . 2 . . . 5 . . . . . . . . . Recycler 2 | 1 . . . . 1 . . . . . . . . . Watcher 6 | . 2 . . . 3 . . . . 1 . . . . Swarmer 30 | . 8 . . 10 6 . . . . . 3 3 . . Grunt 10 | . 1 . . 1 1 . . . . 4 . 3 . . Brawler 1 | . . . . . . . . . . 1 . . . . Sentry 5 | . . . . . 5 . . . . . . . . . Hunter 2 | . . . . . 2 . . . . . . . . . Programmer 3 | . . . . . . 1 . . . 2 . . . . Assembled 3 | . . 3 . . . . . . . . . . . . Best Kill Streak 5 | 2 4 2 . 4 3 1 . . . 4 3 5 . . Combat Bots Only 5 | . 3 2 . 4 3 1 . . . 4 3 5 . . Max Kills in Single Turn 3 | 1 2 1 . 3 2 1 . . . 1 1 2 . . Gunslinging 1 | . . . . . 1 . . . . . . . . . Exploded 3 | . 2 . . 3 1 . . . . . 1 2 . . Melee 1 | . . . . . . . . . . 1 . 1 . . Uniques/NPCs Destroyed . | . . . . . . . . . . . . . . . Combat | -11 -10 -10 -10 -9 -8 -7 -7 -7 -7 -6 -6 -6 -6 -5 -------- Run | Jun Mat Min Exi Min Mat Fac Was Fac DSF Fac Low Low Dat Pro Damage Taken 3936 | . 453 69 . 63 600 . 106 . 21 464 15 1845 . 300 Core 1128 | . 92 10 . 10 137 . 5 . 14 118 . 513 . 229 Absorbed by Shields . | . . . . . . . . . . . . . . . Regen/Repaired (Parts) 11 | . . . . . 11 . . . . . . . . . Core Remaining (%) 81 | 100 . . . 55 75 . . . 97 . . . . . Volleys Fired 157 | 2 41 9 . 10 73 3 . . 2 7 4 4 . 2 Largest 2 | 2 2 2 . 2 2 2 . . 1 1 1 1 . 1 Hottest 80 | 40 60 60 . 53 58 58 . . 66 66 36 36 . 80 Shots Fired 260 | 4 74 14 . 14 129 6 . . 2 7 4 4 . 2 Gun 230 | 4 74 14 . 10 122 6 . . . . . . . . Cannon 11 | . . . . . . . . . 2 7 . . . 2 Launcher 19 | . . . . 4 7 . . . . . 4 4 . . Special . | . . . . . . . . . . . . . . . Kinetic 230 | 4 69 10 . 10 122 6 . . 2 7 . . . . Thermal 11 | . 5 4 . . . . . . . . . . . 2 Explosive 19 | . . . . 4 7 . . . . . 4 4 . . Electromagnetic . | . . . . . . . . . . . . . . . Robot Hit Streak 9 | 1 5 3 . 6 8 4 . . 5 9 5 7 . 9 Robot Miss Streak 5 | 1 5 2 . 4 3 1 . . . 1 . . . . Penetration Max . | . . . . . . . . . . . . . . . Secondary Targets 2 | . 1 . . . 1 . . . . . . . . . Max Gunslinging Chain 1 | . 1 . . . 1 . . . . . . . . . Shots Hit Robots 182 | 2 37 9 . 7 85 4 . . 1 27 3 5 . 2 Core Hits 107 | 2 17 6 . 14 39 1 . . . 10 4 14 . . Critical Kills 4 | . . . . . . . . . . 4 . . . . Critical Parts Destroyed . | . . . . . . . . . . . . . . . Critical Strikes 5 | . . . . . . . . . . 5 . . . . Destroy 4 | . . . . . . . . . . 4 . . . . Sever 1 | . . . . . . . . . . 1 . . . . Melee Attacks 38 | . . . . . . . . . . 35 . 3 . . Impact . | . . . . . . . . . . . . . . . Slashing 38 | . . . . . . . . . . 35 . 3 . . Piercing . | . . . . . . . . . . . . . . . Sneak Attacks 6 | . . . . . . . . . . 6 . . . . Combat Hostiles . | . . . . . . . . . . . . . . . Follow-up Attacks . | . . . . . . . . . . . . . . . Damage Inflicted 5407 | 27 641 119 . 398 1924 108 . . 20 1116 316 687 . 51 Guns 2438 | 27 472 119 . 82 1630 108 . . . . . . . . Cannons 183 | . . . . . . . . . 20 112 . . . 51 Explosions 1667 | . 163 . . 316 294 . . . . . 316 578 . . Melee 1113 | . . . . . . . . . . 1004 . 109 . . Ramming 6 | . 6 . . . . . . . . . . . . . Kinetic 2524 | 27 449 96 . 82 1630 108 . . 20 112 . . . . Thermal 97 | . 23 23 . . . . . . . . . . . 51 Explosive 1667 | . 163 . . 316 294 . . . . . 316 578 . . Electromagnetic . | . . . . . . . . . . . . . . . Impact . | . . . . . . . . . . . . . . . Slashing 1113 | . . . . . . . . . . 1004 . 109 . . Piercing . | . . . . . . . . . . . . . . . Highest Corruption 1 | . . . . . . 1 1 1 1 . . . . . Average Corruption 1 | . . . . . . 1 1 1 1 . . . . . Corruption Purged . | . . . . . . . . . . . . . . . Corruption Blocked . | . . . . . . . . . . . . . . . Effects 6 | . . . . . . 1 2 1 2 . . . . . Message Errors 1 | . . . . . . . 1 . . . . . . . Heat Flow Errors 2 | . . . . . . . 1 1 . . . . . . Energy Discharges 1 | . . . . . . . . . 1 . . . . . Parts Fused 1 | . . . . . . 1 . . . . . . . . Data Loss (minor) 1 | . . . . . . . . . 1 . . . . . Overload Shots . | . . . . . . . . . . . . . . . Overflow Damage 199 | . 14 . . 28 1 . . . . 128 10 18 . . Projectiles . | . . . . . . . . . . . . . . . Explosions 53 | . 14 . . 28 1 . . . . . 10 . . . Melee 146 | . . . . . . . . . . 128 . 18 . . Knockbacks . | . . . . . . . . . . . . . . . Impact . | . . . . . . . . . . . . . . . Kinetic . | . . . . . . . . . . . . . . . Secondary . | . . . . . . . . . . . . . . . Self-Inflicted Damage 194 | . 83 . . . 39 . . . . . . 72 . . Shots 4 | . 1 . . . 1 . . . . . . 2 . . Rammed 1 | . 1 . . . . . . . . . . . . . Targets Rammed 1 | . 1 . . . . . . . . . . . . . Kicked . | . . . . . . . . . . . . . . . Crushed . | . . . . . . . . . . . . . . . Highest Temperature 238 | . 6 20 . . 59 20 132 238 . 171 . 8 . 12 Average Temperature 30 | . 6 20 . . 17 10 78 125 . 80 . 4 . 7 Received Heat Transfer 725 | . 24 20 . . 144 . . . . 162 . 357 . 18 Siege Activations . | . . . . . . . . . . . . . . . Robots Corrupted . | . . . . . . . . . . . . . . . Combat Hostiles . | . . . . . . . . . . . . . . . Parts Fried . | . . . . . . . . . . . . . . . Impact Corruptions . | . . . . . . . . . . . . . . . Robots Melted . | . . . . . . . . . . . . . . . Combat Hostiles . | . . . . . . . . . . . . . . . Parts Melted 1 | . . . . . . 1 . . . . . . . . Heat Transferred 200 | . 50 50 . . . . . . . . . . . 100 Parts Sabotaged . | . . . . . . . . . . . . . . . Parts Stolen . | . . . . . . . . . . . . . . . Parts Stripped . | . . . . . . . . . . . . . . . Power Chain Reactions . | . . . . . . . . . . . . . . . Missiles Intercepted . | . . . . . . . . . . . . . . . Alert | -11 -10 -10 -10 -9 -8 -7 -7 -7 -7 -6 -6 -6 -6 -5 ------- Run | Jun Mat Min Exi Min Mat Fac Was Fac DSF Fac Low Low Dat Pro Peak Influence 418 | 10 261 113 . 279 418 226 51 40 329 183 . . . . Initial 172 | . 6 48 . . 108 94 2 35 28 172 . . . . Average 119 | 5 92 22 . 141 233 118 31 35 222 94 . . . . Maximum Alert Level 2 | . 1 . . 1 2 1 . . 1 . . . . . Low Security (%) 74 | 100 85 100 . 54 23 88 100 100 27 100 . . . . Level 1 25 | . 14 . . 45 75 11 . . 72 . . . . . Level 2 . | . . . . . . . . . . . . . . . Level 3 . | . . . . . . . . . . . . . . . Level 4 . | . . . . . . . . . . . . . . . Level 5 . | . . . . . . . . . . . . . . . High Security . | . . . . . . . . . . . . . . . Max Security . | . . . . . . . . . . . . . . . Sterilizations 1 | . . . . . . . . . 1 . . . . . Squads Dispatched 14 | . 3 . . . . 4 . . 2 4 . 1 . . Investigation 2 | . . . . . . 2 . . . . . . . . Extermination 3 | . . . . . . 1 . . . 2 . . . . Reinforcement 7 | . 3 . . . . . . . 2 2 . . . . Assault 1 | . . . . . . . . . . . . 1 . . Garrison 1 | . . . . . . 1 . . . . . . . . Intercept . | . . . . . . . . . . . . . . . Searches Triggered . | . . . . . . . . . . . . . . . Construction Impeded . | . . . . . . . . . . . . . . . Haulers Reinforced . | . . . . . . . . . . . . . . . Active Scanning Responses . | . . . . . . . . . . . . . . . Cargo Convoy Interrupts . | . . . . . . . . . . . . . . . Stealth | -11 -10 -10 -10 -9 -8 -7 -7 -7 -7 -6 -6 -6 -6 -5 --------- Run | Jun Mat Min Exi Min Mat Fac Was Fac DSF Fac Low Low Dat Pro Distress Signals 3 | . 2 . . . 1 . . . . . . . . . Communications Jammed . | . . . . . . . . . . . . . . . Distress Signals . | . . . . . . . . . . . . . . . Times Spotted 123 | . 21 7 . 10 22 1 5 . 4 13 3 28 . 9 Peak Tracking Total 15 | . 5 3 . 4 5 1 5 . 2 5 3 15 . 8 Tactical Retreats 7 | . . . . . . . . . . 2 . 5 . . Traps | -11 -10 -10 -10 -9 -8 -7 -7 -7 -7 -6 -6 -6 -6 -5 ------- Run | Jun Mat Min Exi Min Mat Fac Was Fac DSF Fac Low Low Dat Pro Traps Triggered 9 | . 1 . . . 2 3 . . 2 1 . . . . Indirectly . | . . . . . . . . . . . . . . . Trap Hack Attempts . | . . . . . . . . . . . . . . . Triggered . | . . . . . . . . . . . . . . . Disarmed . | . . . . . . . . . . . . . . . Reprogrammed . | . . . . . . . . . . . . . . . Reused . | . . . . . . . . . . . . . . . Traps Extracted . | . . . . . . . . . . . . . . . Installed . | . . . . . . . . . . . . . . . Triggered . | . . . . . . . . . . . . . . . Most Traps Carried 1 | . . 1 1 . . . . . . . . . . . Exploded 1 | . . . . . 1 . . . . . . . . . Machines | -11 -10 -10 -10 -9 -8 -7 -7 -7 -7 -6 -6 -6 -6 -5 ---------- Run | Jun Mat Min Exi Min Mat Fac Was Fac DSF Fac Low Low Dat Pro Machines Disabled 6 | . 2 . . 1 1 . . . 1 1 . . . . Max in Single Turn 1 | . 1 . . 1 1 . . . 1 1 . . . . Garrison Access 1 | . . . . . 1 . . . . . . . . . Machines Repaired . | . . . . . . . . . . . . . . . Machines Sabotaged . | . . . . . . . . . . . . . . . Overloaded Fab Kills . | . . . . . . . . . . . . . . . Hacking | -11 -10 -10 -10 -9 -8 -7 -7 -7 -7 -6 -6 -6 -6 -5 --------- Run | Jun Mat Min Exi Min Mat Fac Was Fac DSF Fac Low Low Dat Pro Machines Accessed 35 | . 6 1 . . 11 4 . 1 . 8 . . 4 . Terminals 21 | . 6 1 . . 8 . . 1 . 5 . . . . Fabricators 4 | . . . . . . 3 . . . 1 . . . . Repair Stations 2 | . . . . . 1 . . . . 1 . . . . Recycling Units . | . . . . . . . . . . . . . . . Scanalyzers 3 | . . . . . 1 1 . . . 1 . . . . Garrison Access 1 | . . . . . 1 . . . . . . . . . Total Hacks 116 | . 20 1 . . 40 8 . 1 . 16 . . 30 . Successful 74 | . 13 . . . 23 4 . 1 . 3 . . 30 . Failed 41 | . 7 1 . . 16 4 . . . 13 . . . . Catastrophic 7 | . . 1 . . 4 1 . . . 1 . . . . Database Lockouts 1 | . . . . . 1 . . . . . . . . . Manual 47 | . 17 1 . . 26 . . . . 3 . . . . Terminals 64 | . 20 1 . . 31 . . 1 . 11 . . . . Fabricators 7 | . . . . . . 5 . . . 2 . . . . Repair Stations 5 | . . . . . 3 . . . . 2 . . . . Recycling Units . | . . . . . . . . . . . . . . . Scanalyzers 9 | . . . . . 5 3 . . . 1 . . . . Garrison Access 1 | . . . . . 1 . . . . . . . . . Terminal Hacks 44 | . 4 . . . 6 . . 1 . 3 . . 30 . Record 11 | . . . . . . . . . . . . . 11 . Part Schematic 14 | . 1 . . . 2 . . . . . . . 11 . Robot Schematic 5 | . . . . . . . . . . . . . 5 . Robot Analysis 2 | . 1 . . . 1 . . . . . . . . . Prototype ID Bank 6 | . 1 . . . 1 . . . . 1 . . 3 . Open DSF 2 | . . . . . . . . 1 . 1 . . . . Level Access Points 1 | . . . . . 1 . . . . . . . . . Branch Access Points 1 | . . . . . . . . . . 1 . . . . Terminal Index 2 | . 1 . . . 1 . . . . . . . . . Fabricator Hacks 3 | . . . . . . 3 . . . . . . . . Load Schematic 1 | . . . . . . 1 . . . . . . . . Build 2 | . . . . . . 2 . . . . . . . . Repair Station Hacks 2 | . . . . . 2 . . . . . . . . . Scan Component 1 | . . . . . 1 . . . . . . . . . Repair 1 | . . . . . 1 . . . . . . . . . Recycling Unit Hacks . | . . . . . . . . . . . . . . . Scanalyzer 5 | . . . . . 4 1 . . . . . . . . Insert Component 3 | . . . . . 2 1 . . . . . . . . Analyze 2 | . . . . . 2 . . . . . . . . . Garrison Access Hacks 1 | . . . . . 1 . . . . . . . . . Seal Access 1 | . . . . . 1 . . . . . . . . . Unauthorized Hacks 19 | . 9 . . . 10 . . . . . . . . . Terminals 19 | . 9 . . . 10 . . . . . . . . . Track 5 | . 2 . . . 3 . . . . . . . . . Assimilate 3 | . 3 . . . . . . . . . . . . . Botnet 8 | . 2 . . . 6 . . . . . . . . . Disrupt 1 | . 1 . . . . . . . . . . . . . Operators 2 | . 1 . . . 1 . . . . . . . . . Fabricators . | . . . . . . . . . . . . . . . Repair Stations . | . . . . . . . . . . . . . . . Recycling Units . | . . . . . . . . . . . . . . . Scanalyzers . | . . . . . . . . . . . . . . . Garrison Access . | . . . . . . . . . . . . . . . Data Cores Recovered . | . . . . . . . . . . . . . . . Used . | . . . . . . . . . . . . . . . Hacking Detections 26 | . 6 1 . . 9 3 . . . 7 . . . . Full Trace Events 2 | . . . . . . 2 . . . . . . . . Feedback Events 1 | . . . . . . 1 . . . . . . . . Corruption 1 | . . . . . . 1 . . . . . . . . Feedback Blocked . | . . . . . . . . . . . . . . . Robot Schematics Acquired 5 | . . . . . . . . . . . . . 5 . Robots Built . | . . . . . . . . . . . . . . . Authchips . | . . . . . . . . . . . . . . . Time . | . . . . . . . . . . . . . . . Total Robot Build Rating . | . . . . . . . . . . . . . . . Part Schematics Acquired 16 | . 1 . . . 4 . . . . . . . 11 . Parts Built 1 | . . . . . . 1 . . . . . . . . Authchips . | . . . . . . . . . . . . . . . Time 120 | . . . . . . 120 . . . . . . . . Total Part Build Rating 5 | . . . . . . 5 . . . . . . . . Parts Repaired 1 | . . . . . 1 . . . . . . . . . Time 108 | . . . . . 108 . . . . . . . . . Parts Recycled . | . . . . . . . . . . . . . . . Recycled Matter . | . . . . . . . . . . . . . . . Retrieved Matter . | . . . . . . . . . . . . . . . Retrieved Components . | . . . . . . . . . . . . . . . Parts Scanalyzed 3 | . . . . . 2 1 . . . . . . . . Part Schematics Acquired 2 | . . . . . 2 . . . . . . . . . Parts Damaged . | . . . . . . . . . . . . . . . Bothacking | -11 -10 -10 -10 -9 -8 -7 -7 -7 -7 -6 -6 -6 -6 -5 ------------ Run | Jun Mat Min Exi Min Mat Fac Was Fac DSF Fac Low Low Dat Pro Used RIF Installer . | . . . . . . . . . . . . . . . Robots Hacked . | . . . . . . . . . . . . . . . Non-combat . | . . . . . . . . . . . . . . . Combat . | . . . . . . . . . . . . . . . Robot Hacks Applied . | . . . . . . . . . . . . . . . Relay Couplers Released . | . . . . . . . . . . . . . . . Fabnet Peak Effective % . | . . . . . . . . . . . . . . . Robots Rewired 1 | . . . . . . 1 . . . . . . . . Allies Hacked . | . . . . . . . . . . . . . . . Hacks Repelled . | . . . . . . . . . . . . . . . Allies | -11 -10 -10 -10 -9 -8 -7 -7 -7 -7 -6 -6 -6 -6 -5 -------- Run | Jun Mat Min Exi Min Mat Fac Was Fac DSF Fac Low Low Dat Pro Total Allies 25 | . 1 3 . . . 1 19 . . . . . . 1 Largest Group 19 | . 1 3 2 2 . 1 19 17 17 8 . . . 1 Highest-Rated Group 465 | . 10 40 32 32 . 32 465 437 437 223 . . . 96 Highest-Rated Ally 96 | . 10 16 16 16 . 32 35 35 35 35 . . . 96 Total Orders 1 | . . . . . . 1 . . . . . . . . STAY 1 | . . . . . . 1 . . . . . . . . Ally Attacks 235 | . . 14 . 3 . 13 80 . 102 13 . . . 10 Total Damage 6990 | . . 134 . 15 . 468 3150 . 2309 453 . . . 461 Kills 30 | . . 5 . 1 . 3 7 . 10 3 . . . 1 Allies Corrupted . | . . . . . . . . . . . . . . . Allies Melted . | . . . . . . . . . . . . . . . Intel | -11 -10 -10 -10 -9 -8 -7 -7 -7 -7 -6 -6 -6 -6 -5 ------- Run | Jun Mat Min Exi Min Mat Fac Was Fac DSF Fac Low Low Dat Pro Robot Analysis Total 2 | . 1 . . . 1 . . . . . . . . . Derelict Logs Recovered 5 | . . 1 . 1 . . . . . . 2 . . 1 Drone Launches . | . . . . . . . . . . . . . . . Drone Recoveries . | . . . . . . . . . . . . . . . Exploration | -11 -10 -10 -10 -9 -8 -7 -7 -7 -7 -6 -6 -6 -6 -5 ------------- Run | Jun Mat Min Exi Min Mat Fac Was Fac DSF Fac Low Low Dat Pro Turns Passed 8125 | 65 1017 1094 290 291 1659 431 268 139 193 1617 598 225 39 199 Spaces Moved 5844 | 46 542 863 271 270 879 333 218 98 132 1012 479 291 79 331 Core 484 | 14 3 . . . . . . . . . . 57 79 331 Treads . | . . . . . . . . . . . . . . . Legs . | . . . . . . . . . . . . . . . Wheels 5186 | 32 539 863 271 270 879 333 218 98 132 1012 479 60 . . Hover 174 | . . . . . . . . . . . . 174 . . Flight . | . . . . . . . . . . . . . . . Fastest Speed 38 | 50 80 95 95 95 95 115 115 115 115 115 115 38 50 50 Average Speed 102 | 80 101 95 95 95 121 115 115 115 115 115 115 60 50 50 Slowest Speed 250 | 100 250 95 95 95 145 115 115 115 115 130 115 145 50 50 Overloaded Moves . | . . . . . . . . . . . . . . . Propulsion Burnouts . | . . . . . . . . . . . . . . . Robots Hopped . | . . . . . . . . . . . . . . . Cave-ins Triggered . | . . . . . . . . . . . . . . . Exploration Rate (%) 57 | 4 89 100 64 62 77 9 93 4 96 24 59 57 75 51 Regions Visited 14 Branch Regions 7 Pre-discovered Areas 3 | . . 1 . . . . . . . . 1 . 1 . Known Exits Taken 4 | . . . . . 1 . . 1 . 1 1 . . . Unknown Exits Taken 7 | 1 1 1 1 1 . . . . . . . 1 1 . Scrap Searched 17 | . . 1 . 1 . . . . . . 8 4 . 3 Spaces Dug 13 | . . . . . . . . . . 13 . . . . Terrain Destroyed 208 | . 37 . . 26 53 . . . . 14 24 54 . . Melee 13 | . . . . . . . . . . 13 . . . . Projectile 7 | . . . . . 6 . . . . 1 . . . . AOE 188 | . 37 . . 26 47 . . . . . 24 54 . . Terrain Rammed . | . . . . . . . . . . . . . . . Walls Destroyed . | . . . . . . . . . . . . . . . Machines Disabled . | . . . . . . . . . . . . . . . Actions | -11 -10 -10 -10 -9 -8 -7 -7 -7 -7 -6 -6 -6 -6 -5 --------- Run | Jun Mat Min Exi Min Mat Fac Was Fac DSF Fac Low Low Dat Pro Total 7693 | 70 934 1124 304 290 1371 378 235 125 171 1397 521 332 78 363 Wait 1370 | 3 317 231 27 4 364 13 14 23 12 298 34 6 . 24 Move 5831 | 45 541 862 270 269 878 333 217 97 131 1011 478 290 78 331 Hop . | . . . . . . . . . . . . . . . Pick Up 107 | 12 20 8 3 2 29 3 2 1 6 11 1 7 . 2 Fast Attach . | . . . . . . . . . . . . . . . Attach 54 | 7 6 . . 1 10 4 2 1 2 4 2 13 . 2 Detach 6 | . . . . . 2 . . 1 1 2 . . . . Swap 31 | . 2 6 1 2 5 1 . . 1 10 1 2 . . Drop 57 | 1 6 8 3 2 10 4 . 2 . 11 1 7 . 2 Fire 157 | 2 41 9 . 10 73 3 . . 2 7 4 4 . 2 Melee 38 | . . . . . . . . . . 35 . 3 . . Ram 1 | . 1 . . . . . . . . . . . . . Kick . | . . . . . . . . . . . . . . . Crush . | . . . . . . . . . . . . . . . Escape Stasis 40 | . . . . . . 16 . . 16 8 . . . . Rewire 1 | . . . . . . 1 . . . . . . . . Trap . | . . . . . . . . . . . . . . . Miscellaneous . | . . . . . . . . . . . . . . . Route ------- -11/Junkyard -10/Materials (discovered 5 exits: [*Mat x3] / *Min x2) -10/Mines (discovered 3 exits: [*Mat x2] / [*Exi]) -10/Exiles -9/Mines -8/Materials (discovered 3 exits: *Fac x3) -7/Factory -7/Waste -7/Factory -7/DSF -6/Factory (discovered 4 exits: *Fac x2 / *Low x2) -6/Lower Caves -6/Lower Caves (discovered 2 exits: *Fac / *Dat) -6/Data Miner -5/Proximity Caves (discovered 1 exit: *Fac) History --------- Turn | Location | Event 19 | -11/Junkyard | Discovered new exit (range 16) 66 | -11/Junkyard | Entered Materials 138 | -10/Materials | Discovered new exit (range 10) 257 | -10/Materials | Discovered new exit (range 8) 318 | -10/Materials | Build established: Mutant 352 | -10/Materials | Discovered new exit (range 15) 847 | -10/Materials | Discovered new exit (range 4) 849 | -10/Materials | Discovered new exit (range 9) 1083 | -10/Materials | Entered Mines 1084 | -10/Mines | Assembled infested the area 1343 | -10/Mines | Found a damaged Exp. Sensor Array with a note attached 1347 | -10/Mines | Found Prototype Device 1386 | -10/Mines | Discovered new exit (range 5) 1475 | -10/Mines | Deemed a non-threat by the Exiles lab entrance 1526 | -10/Mines | Found a hidden stash of uninstalled traps 1588 | -10/Mines | A weapon hastily lodged in a ceiling crevice suddenly fell to the ground 1624 | -10/Mines | Assisted by bots powering up and referring to "LRC-V3" 1682 | -10/Mines | Discovered new exit (range 8) 1806 | -10/Mines | Learned location of Zion (-7) 2135 | -10/Mines | Discovered new exit (range 5) 2177 | -10/Mines | Entered Exiles 2177 | -10/Exiles | Accompanied by 2 allies 2203 | -10/Exiles | Met 8R-AWN 2217 | -10/Exiles | Met EX-HEX 2255 | -10/Exiles | Met EX-DEC 2354 | -10/Exiles | Visited The Gauntlet 2448 | -10/Exiles | Discovered new exit (range 10) 2467 | -10/Exiles | Entered Mines 2467 | -9/Mines | Accompanied by 2 allies 2611 | -9/Mines | Learned Materials stockpile data 2618 | -9/Mines | Received a Rocket Launcher from a helpful Derelict 2702 | -9/Mines | Discovered new exit (range 9) 2758 | -9/Mines | Entered Materials 2758 | -8/Materials | Evolved 4 slots: Propulsion x1, Utility x3 3170 | -8/Materials | Discovered new exit (range 13) 3229 | -8/Materials | Identified Exp. Sensor Array 3339 | -8/Materials | Repaired Exp. Sensor Array 3346 | -8/Materials | Build established: Scavenger-Mutant 4212 | -8/Materials | Central database locked down 4324 | -8/Materials | Identified exit to Factory 4417 | -8/Materials | Entered Factory 4417 | -7/Factory | Evolved 2 slots: Propulsion x1, Utility x1 4479 | -7/Factory | Fabricated Cloaking Device? 4726 | -7/Factory | Build established: Skirmisher 4769 | -7/Factory | Garrison activated, responded to threat 4848 | -7/Factory | Sucked down chute 4848 | -7/Factory | Entered Waste 4863 | -7/Waste | Spotted C-40 Crusher 4892 | -7/Waste | Spotted C-40 Crusher 4896 | -7/Waste | Spotted C-40 Crusher 4898 | -7/Waste | Spotted C-40 Crusher 4908 | -7/Waste | Crushed by Compactor (1 part destroyed) 4909 | -7/Waste | Crushed by Compactor (0 parts destroyed, 1 dropped) 4913 | -7/Waste | Warlord forces began an assault 4913 | -7/Waste | Spotted C-40 Crusher 4917 | -7/Waste | Allies destroyed C-40 Crusher 4922 | -7/Waste | Allies destroyed C-40 Crusher 4922 | -7/Waste | Allies destroyed C-40 Crusher 4927 | -7/Waste | Allies destroyed C-40 Crusher 5023 | -7/Waste | Spotted C-40 Crusher 5035 | -7/Waste | Discovered new exit (range 11) 5111 | -7/Waste | Identified exit to Factory 5116 | -7/Waste | Entered Factory 5116 | -7/Factory | Accompanied by 17 allies 5229 | -7/Factory | Identified exit to DSF 5255 | -7/Factory | Entered DSF 5255 | -7/DSF | Accompanied by 17 allies 5276 | -7/DSF | Additional patrols routed to DSF 5382 | -7/DSF | Discovered new exit (range 15) 5420 | -7/DSF | Build established: Mutant 5439 | -7/DSF | Sterilization system engaged 5443 | -7/DSF | Identified exit to Factory 5448 | -7/DSF | Entered Factory 5448 | -6/Factory | Accompanied by 8 allies 5448 | -6/Factory | Evolved 2 slots: Power x1, Utility x1 5532 | -6/Factory | Discovered new exit (range 15) 5560 | -6/Factory | Identified exit to Factory 6197 | -6/Factory | Discovered exit to Factory (range 15) 6978 | -6/Factory | Identified exit to Lower Caves 7004 | -6/Factory | Build established: Scavenger-Mutant 7065 | -6/Factory | Entered Lower Caves 7071 | -6/Lower Caves | Met a Warlord Commander 7072 | -6/Lower Caves | Learned location of Warlord (-5) 7081 | -6/Lower Caves | Found Encrypted Comm Array 7207 | -6/Lower Caves | Spotted B-75 Beast 7391 | -6/Lower Caves | Build established: Mutant 7397 | -6/Lower Caves | Discovered new exit (range 13) 7424 | -6/Lower Caves | Encountered a Warlord checkpoint 7538 | -6/Lower Caves | Learned location of 1 exit from Factory 7549 | -6/Lower Caves | Learned location of 1 exit from Factory 7662 | -6/Lower Caves | Identified exit to Lower Caves 7663 | -6/Lower Caves | Entered another Lower Caves area 7677 | -6/Lower Caves | Discovered exit to Factory (range 7) 7717 | -6/Lower Caves | Attracted the attention of an 0b10 outpost 7776 | -6/Lower Caves | Core integrity fell below 50% 7852 | -6/Lower Caves | Spotted B-75 Beast 7868 | -6/Lower Caves | Discovered new exit (range 8) 7884 | -6/Lower Caves | Lost 11 parts (2p7n1u1w) 7888 | -6/Lower Caves | Entered Data Miner 7888 | -6/Data Miner | Discovered new exit (range 6) 7895 | -6/Data Miner | Met Data Miner 7910 | -6/Data Miner | Learned location of Section 7 (-2) 7910 | -6/Data Miner | Acquired the access code to Warlord's prototype stash 7915 | -6/Data Miner | Received God Mode back door access code from Data Miner 7927 | -6/Data Miner | Entered Proximity Caves 7940 | -5/Proximity Caves | Escorted by Enhanced Grunt 7940 | -5/Proximity Caves | Attracted the attention of an 0b10 checkpoint 7949 | -5/Proximity Caves | Core integrity fell below 20% 8009 | -5/Proximity Caves | Spotted B-75 Beast 8126 | -5/Proximity Caves | Destroyed by G-50 Soldier with Heavy Laser Last Messages --------------- 08008_ Acquired Coil Gun. 08011_ Acquired 10 matter. 08039_ Penetrated by Slug. 08063_ Slug penetrates Enhanced Grunt. 08066_ Slug penetrates Wall. 08070_ Slug penetrates Enhanced Grunt. 08070_ Enhanced Grunt destroyed. 08070_ Dropped Enh. Autogun. 08070_ Penetrated by Slug. 08071_ Dropped Plasma Cannon. 08071_ Acquired 10 matter. 08072_ Acquired Prototype Storage. 08074_ Slug penetrates Wall. 08079_ Penetrated by Slug. 08102_ Acquired derelict log, extracted data. 08102_ Searching scrap... 08102_ Found Imp. Medium Armor Plating. 08102_ Found Med. Insulated Plating. 08102_ Found 18 Matter. 08118_ 0b10 Decoder Chip [Skirmisher] destroyed. Map ----- +----------------------------------------------------+ | ?????????????????????????????????????????????????? | | ?????????????????????????????????????????????????? | | ?????????????????????????????????????????????????? | | ?????????????????????????????????????????????????? | | ??????????? ???????????????????????????????????? | | ?????????? ???????????????????????????????????? | | ?????????? ???????????????????????????????????? | | ?????????? ???????????????????????????????????? | | ?????????? ???????????????????????????????????? | | ?????????? #???????????????????????????????????? | | ??????????# #???????????????????????????????????? | | ??????????# #???????????????????????????????????? | | ??????????# #???????????????????????????????????? | | ??????????# #???????????????????????????????????? | | ??????????# #???????????????????????????????????? | | ??????????# #???????????????????????????????????? | | ??????????# #???????????????????????????????????? | | #?????????# #???????????????????????????????????? | | ##????????# #???????????##??????????????????????? | | ##???????# #???????#### #??????????????????????? | | ##??????# #???????# ???????????????????????? | | ##????## ######### ????????????????????????? | | ##???# #????????????????????????? | | ##### #?????# ##???????????????????????? | | ### ######## #### ## ###????????????? | | ??## @ g< #??????????? | | ???# ### ####### ## g #??????????? | | ???# #?### ##?????######??? #??????????? | | ???######???###??????????????????######??????????? | | ?????????????????????????????????????????????????? | | ?????????????????????????????????????????????????? | | ?????????????????????????????????????????????????? | | ?????????????????????????????????????????????????? | | ?????????????????????????????????????????????????? | | ?????????????????????????????????????????????????? | | ?????????????????????????????????????????????????? | | ?????????????????????????????????????????????????? | | ?????????????????????????????????????????????????? | | ?????????????????????????????????????????????????? | | ?????????????????????????????????????????????????? | | ?????????????????????????????????????????????????? | | ?????????????????????????????????????????????????? | | ?????????????????????????????????????????????????? | | ?????????????????????????????????????????????????? | | | | | | | | | | | | | +----------------------------------------------------+ Best States ------------- Heat Dissipation 37 Energy Generation 28 Energy Capacity 500 Matter Stores 300 Matter Capacity 300 Sight Range 22 Robot Scan Range 20 Terrain Scan Range 16 Terrain Scan Density 210 Armor Coverage 375 Resistance: EM 15 Evasion (%) 57 Targeting Accuracy 8 Melee Accuracy 8 Target Analysis 5 Armor Integrity Analysis 30 Offensive Hacking 10 Authchip Count 3 Item Schematics ----------------- Lrg. Storage Unit | -10/Materials | Hacked Arm. Wheel | -8/Materials | Hacked Exp. Sensor Array | -8/Materials | Scanalyzed Aerolev Unit | -8/Materials | Scanalyzed Hacking Suite | -8/Materials | Hacked Combat Drone Bay | -6/Data Miner | Free Lgt. Regenerative Plating | -6/Data Miner | Free Cld. Gravmag System | -6/Data Miner | Free Prc. Matter Filter | -6/Data Miner | Free Hvy. Gatling Laser | -6/Data Miner | Free Adv. VSS Leg | -6/Data Miner | Free Adv. Particle Charger | -6/Data Miner | Free Matter Neutralizer | -6/Data Miner | Free Quantum Capacitor | -6/Data Miner | Free Imp. Antigrav System | -6/Data Miner | Free Linear Accelerator | -6/Data Miner | Free Robot Schematics ------------------ A-15 Conveyor | -6/Data Miner | Free B-60 Warrior | -6/Data Miner | Free L-41 Fighter | -6/Data Miner | Free B-48 Gladiator | -6/Data Miner | Free G-67 Veteran | -6/Data Miner | Free Fabricated ------------ Cloaking Device | x1 | -7/Factory | Preloaded Alien Tech Used ----------------- None Achievements -------------- None Challenges ------------ None Game ------ Seed ParticleReactiveMultirail Manual? 0 Play Time 01:28:18 Cumulative 318.0 hours Start 2023.03.10 @ 12:44:22 End 2023.03.10 @ 20:06:23 Sessions 5 Manual Loads 0 Difficulty Rogue Special Mode None Game No. 357 Rogue 357 Adventurer 0 Explorer 0 Win Type - Total 6 Types 3/1/1/1/0/0/0/0/0 Lore% 62 Gallery% 78 Achievement% 66 Wizard Run 0 Options --------- ASCII 0 Keyboard 0 Movement Numpad Keybinds 0 Fullscreen 1 Font 16/Terminus Map View 75x55 Tactical HUD 1 Map Filters NONE Filters NONE Steam 1 RUN: 7485b66f-a403-4162-b059-2aea1abe497a